bitfinex/quotes_BTCUSD_20230101
["timestamp","ask_amount","ask_price","bid_price","bid_amount"]
[1672580187501,1.09791916,16559.0,16558.0,1.220874]
[1672580187757,0.82679419,16559.0,16558.0,0.013]
[1672580187998,0.4651519,16559.0,16558.0,0.013]
[1672580188257,0.8651519,16559.0,16558.0,0.013]
[1672580188510,0.8521519,16559.0,16557.0,0.63053662]
[1672580188793,0.6327368,16558.0,16557.0,0.91141377]
[1672580189818,0.6457368,16558.0,16557.0,0.92441377]
[1672580190108,0.6457368,16558.0,16557.0,0.64353662]
[1672580190357,0.46503656,16558.0,16557.0,0.53559273]
[1672580190603,0.82652129,16558.0,16557.0,0.53559273]
[1672580192774,1.0975743,16558.0,16557.0,0.53559273]
[1672580193024,0.64553774,16558.0,16557.0,0.53559273]
[1672580194022,0.64553774,16558.0,16557.0,0.76084581]
[1672580195531,0.64553774,16558.0,16557.0,0.53559273]
[1672580196330,0.64553774,16558.0,16557.0,0.03956262]
[1672580197274,0.64553774,16558.0,16557.0,0.03946812]
[1672580200497,0.64553774,16558.0,16557.0,0.64344212]
[1672580201226,0.82617763,16558.0,16557.0,0.64344212]
[1672580201707,0.82617763,16558.0,16557.0,0.87871278]
[1672580202728,0.4646929,16558.0,16557.0,0.87871278]
[1672580203469,0.82617763,16558.0,16557.0,0.87871278]
[1672580204213,0.82619383,16558.0,16557.0,0.64344212]
[1672580204464,0.64553774,16558.0,16557.0,0.64344212]
[1672580205737,0.60865434,16558.0,16557.0,0.03946812]
[1672580205982,0.778009,16558.0,16557.0,0.03946812]
[1672580207528,0.657,16558.0,16557.0,0.03946812]
[1672580207766,1.278009,16558.0,16557.0,0.03946812]
[1672580208260,0.657,16558.0,16557.0,0.03946812]
[1672580208504,1.278009,16558.0,16557.0,0.03946812]
[1672580209013,0.657,16558.0,16557.0,0.03946812]
[1672580209264,1.278009,16558.0,16557.0,0.03946812]
[1672580209782,0.657,16558.0,16557.0,0.03946812]
[1672580210288,0.157,16558.0,16557.0,0.03946812]
[1672580210786,0.778009,16558.0,16557.0,0.03946812]
[1672580212264,0.95062797,16558.0,16557.0,0.03946812]
[1672580212525,0.778009,16558.0,16557.0,0.03946812]
[1672580213516,0.634009,16558.0,16557.0,0.03946812]
[1672580213760,0.464622,16558.0,16557.0,0.03946812]
[1672580215540,0.50385347,16558.0,16557.0,0.03946812]
[1672580218807,0.50385347,16558.0,16557.0,0.16947958]
[1672580219055,0.05223147,16558.0,16557.0,0.03946812]
[1672580219296,1.21628194,16558.0,16557.0,0.03946812]
[1672580219563,1.6461284,16558.0,16557.0,0.03946812]
[1672580220063,1.09008693,16558.0,16557.0,0.02646812]
[1672580220313,1.99070672,16558.0,16557.0,0.03846812]
[1672580220805,1.97670672,16558.0,16557.0,0.02646812]
[1672580221047,1.70099185,16558.0,16557.0,0.02646812]
[1672580221603,2.43392885,16558.0,16557.0,0.02846812]
[1672580221811,2.30492885,16558.0,16557.0,0.02646812]
[1672580222045,2.34692885,16558.0,16557.0,0.02946812]
[1672580222291,2.34692885,16558.0,16557.0,0.02939116]
[1672580222547,2.64202467,16558.0,16557.0,0.02939116]
[1672580222798,1.70099185,16558.0,16557.0,0.02639116]
[1672580223054,1.82999185,16558.0,16557.0,0.02839116]
[1672580223322,1.09008693,16558.0,16557.0,0.02639116]
[1672580223571,1.13208693,16558.0,16557.0,0.02939116]
[1672580223825,1.09008693,16558.0,16557.0,0.02639116]
[1672580224071,1.36678905,16558.0,16557.0,0.02939116]
[1672580224313,1.32478905,16558.0,16557.0,0.02639116]
[1672580224563,1.32478905,16558.0,16557.0,0.02939116]
[1672580224564,1.36678905,16558.0,16557.0,0.02939116]
[1672580224812,1.92872605,16558.0,16557.0,0.02639116]
[1672580226335,1.97072605,16558.0,16557.0,0.02939116]
[1672580226557,2.53266305,16558.0,16557.0,0.02639116]
[1672580226801,2.57466305,16558.0,16557.0,0.02939116]
[1672580227059,2.57466305,16558.0,16557.0,0.02639116]
[1672580227307,2.61666305,16558.0,16557.0,0.02939116]
[1672580227568,2.53266305,16558.0,16557.0,0.02639116]
[1672580227834,2.57466305,16558.0,16557.0,0.02939116]
[1672580228084,2.53266305,16558.0,16557.0,0.02639116]
[1672580228324,2.57466305,16558.0,16557.0,0.02939116]
[1672580229308,2.53266305,16558.0,16557.0,0.02639116]
[1672580229556,2.57466305,16558.0,16557.0,0.02939116]
[1672580229846,2.29796093,16558.0,16557.0,0.02639116]
[1672580230133,1.71895193,16558.0,16557.0,0.02939116]
[1672580230352,2.33996093,16558.0,16557.0,0.02939116]
[1672580230614,1.71895193,16558.0,16557.0,0.02939116]
[1672580230866,2.88193355,16558.0,16557.0,0.02939116]
[1672580231117,3.17532427,16558.0,16557.0,0.02939116]
[1672580232127,2.88193355,16558.0,16557.0,0.02939116]
[1672580232637,2.27799655,16558.0,16557.0,0.02939116]
[1672580236637,2.23599655,16558.0,16557.0,0.02639116]
[1672580237137,2.24699655,16558.0,16557.0,0.03739116]
[1672580237646,1.21321309,16558.0,16557.0,0.5014633]
[1672580237897,0.67124047,16558.0,16557.0,0.5014633]
[1672580238393,0.67124047,16558.0,16557.0,0.61479423]
[1672580238642,0.05023147,16558.0,16557.0,0.5014633]
[1672580238879,0.67124047,16558.0,16557.0,0.5014633]
[1672580239850,0.67124047,16558.0,16557.0,1.1054373]
[1672580240092,0.50196911,16558.0,16557.0,1.7094113]
[1672580240356,0.50196911,16558.0,16557.0,1.88313913]
[1672580240600,0.86337189,16558.0,16557.0,1.88313913]
[1672580242541,1.13445578,16558.0,16557.0,1.88313913]
[1672580242791,0.67171814,16558.0,16557.0,1.87213913]
[1672580243029,0.85937189,16558.0,16557.0,1.93813913]
[1672580243532,0.85237189,16558.0,16557.0,1.87213913]
[1672580243776,0.85937189,16558.0,16557.0,1.93813913]
[1672580244779,0.85937189,16558.0,16557.0,1.33416513]
[1672580245020,0.85948723,16558.0,16557.0,1.33416513]
[1672580245275,0.49808445,16558.0,16557.0,1.33416513]
[1672580245757,0.49796911,16558.0,16557.0,1.33407058]
[1672580246254,0.85948596,16558.0,16557.0,1.33407058]
[1672580246501,0.85947164,16558.0,16557.0,1.33407058]
[1672580246748,0.49796911,16558.0,16557.0,1.33407058]
[1672580247223,0.49808445,16558.0,16557.0,1.33407058]
[1672580247506,0.85945494,16558.0,16557.0,1.33407058]
[1672580247986,0.85945494,16558.0,16557.0,2.16876904]
[1672580248226,0.85935192,16558.0,16557.0,1.33407058]
[1672580248935,0.85946726,16558.0,16557.0,1.33407058]
[1672580249157,0.85935192,16558.0,16557.0,1.33407058]
[1672580251400,0.85946726,16558.0,16557.0,1.33407058]
[1672580251697,0.85935192,16558.0,16557.0,1.33407058]
[1672580256892,1.13038647,16558.0,16557.0,1.33407058]
[1672580257921,1.13050181,16558.0,16557.0,1.33407058]
[1672580258157,0.85935192,16558.0,16557.0,1.33407058]
[1672580259136,0.85946726,16558.0,16557.0,1.33407058]
[1672580259377,0.85935192,16558.0,16557.0,1.33407058]
[1672580260053,0.85935192,16558.0,16557.0,1.16034275]
[1672580260885,0.67863099,16558.0,16557.0,1.16034275]
[1672580261087,0.67863099,16558.0,16557.0,1.76431675]
[1672580262363,0.67874633,16558.0,16557.0,1.76431675]
[1672580262632,0.67863099,16558.0,16557.0,1.76431675]
[1672580262867,0.67863099,16558.0,16557.0,2.00393363]
[1672580264349,0.85931133,16558.0,16557.0,2.00393363]
[1672580264602,0.67863099,16558.0,16557.0,2.00393363]
[1672580265094,0.85933051,16558.0,16557.0,2.00393363]
[1672580265340,0.67863099,16558.0,16557.0,2.00393363]
[1672580265583,0.49784078,16558.0,16557.0,2.00393363]
[1672580266581,0.85932661,16558.0,16557.0,2.00393363]
[1672580267335,0.49784078,16558.0,16557.0,2.00393363]
[1672580267589,0.04612845,16558.0,16557.0,2.46210644]
[1672580268329,0.03912845,16558.0,16557.0,2.85749677]
[1672580268585,0.04612845,16558.0,16557.0,2.92349677]
[1672580268831,0.04612845,16558.0,16557.0,2.90522582]
[1672580269071,0.04612845,16558.0,16557.0,2.92349677]
[1672580270324,0.04612845,16558.0,16557.0,2.92339175]
[1672580271068,0.04612845,16558.0,16557.0,3.62339175]
[1672580280246,0.04612845,16558.0,16557.0,2.92339175]
[1672580280732,0.04612845,16558.0,16557.0,3.6051208]
[1672580283240,0.22682407,16558.0,16557.0,3.6051208]
[1672580283758,0.04612845,16558.0,16557.0,3.6051208]
[1672580284501,0.04612845,16558.0,16557.0,2.9051208]
[1672580284741,0.04612845,16558.0,16557.0,2.6051208]
[1672580285264,0.04612845,16558.0,16557.0,2.9051208]
[1672580285766,0.22682407,16558.0,16557.0,2.9051208]
[1672580286011,0.04612845,16558.0,16557.0,2.9051208]
[1672580286625,0.22682407,16558.0,16557.0,2.9051208]
[1672580286896,0.04612845,16558.0,16557.0,2.9051208]
[1672580287686,0.22682407,16558.0,16557.0,2.9051208]
[1672580287925,0.04612845,16558.0,16557.0,2.9051208]
[1672580288423,0.22682407,16558.0,16557.0,2.9051208]
[1672580290408,0.49784078,16558.0,16557.0,2.6051208]
[1672580290650,0.49784078,16558.0,16557.0,2.60501568]
[1672580293141,0.49773486,16558.0,16557.0,2.60501568]
[1672580294400,0.67852507,16558.0,16557.0,2.60501568]
[1672580294646,0.49779458,16558.0,16557.0,2.90501568]
[1672580298434,0.49779458,16558.0,16557.0,3.60501568]
[1672580298914,0.85928041,16558.0,16557.0,3.60501568]
[1672580299973,0.49779458,16558.0,16557.0,3.60501568]
[1672580300747,0.85928041,16558.0,16557.0,3.60501568]
[1672580301051,0.49779458,16558.0,16557.0,3.60501568]
[1672580301320,0.85928041,16558.0,16557.0,3.60501568]
[1672580301560,0.49779458,16558.0,16557.0,3.60501568]
[1672580302021,0.85928041,16558.0,16557.0,3.60501568]
[1672580302270,0.49779458,16558.0,16557.0,3.60501568]
[1672580302526,0.85928041,16558.0,16557.0,3.60501568]
[1672580302774,0.49779458,16558.0,16557.0,3.60501568]
[1672580304018,0.85928041,16558.0,16557.0,3.60501568]
[1672580304263,0.49779458,16558.0,16557.0,3.60501568]
[1672580304506,0.85928041,16558.0,16557.0,2.90501568]
[1672580305513,0.85928041,16558.0,16557.0,3.60501568]
[1672580306255,0.67852507,16558.0,16557.0,3.60501568]
[1672580307983,0.67852507,16558.0,16557.0,3.32328663]
[1672580308243,0.67852507,16558.0,16557.0,3.30501568]
[1672580308489,0.67864041,16558.0,16557.0,2.84362535]
[1672580308743,0.67864041,16558.0,16557.0,2.14362535]
[1672580308744,1.48037034,16558.0,16557.0,2.14362535]
[1672580308986,1.11876917,16558.0,16557.0,2.14362535]
[1672580309483,0.49776017,16558.0,16557.0,2.14362535]
[1672580309729,0.85951351,16558.0,16557.0,2.14362535]
[1672580310472,0.49776017,16558.0,16557.0,2.14362535]
[1672580310994,0.85952951,16558.0,16557.0,1.53965135]
[1672580311972,0.85952951,16558.0,16557.0,2.14362535]
[1672580312924,0.85952951,16558.0,16557.0,1.53965135]
[1672580313974,0.85952951,16558.0,16557.0,2.14362535]
[1672580314222,0.85952951,16558.0,16557.0,2.14354525]
[1672580316726,0.85964485,16558.0,16557.0,1.53957125]
[1672580316970,0.85952951,16558.0,16557.0,1.53957125]
[1672580317218,0.85952951,16558.0,16557.0,2.14354525]
[1672580317982,0.85952951,16558.0,16557.0,1.53957125]
[1672580318236,0.85952951,16558.0,16557.0,2.14354525]
[1672580321509,0.49776017,16558.0,16557.0,1.53957125]
[1672580321999,1.11876917,16558.0,16557.0,1.53957125]
[1672580322736,1.11876917,16558.0,16557.0,2.14354525]
[1672580322983,0.49776017,16558.0,16557.0,2.14354525]
[1672580325231,0.49768233,16558.0,16557.0,1.53957125]
[1672580325733,0.49779767,16558.0,16557.0,1.53957125]
[1672580325990,0.49768233,16558.0,16557.0,1.53957125]
[1672580326725,0.49779767,16558.0,16557.0,1.53957125]
[1672580326975,0.49768233,16558.0,16557.0,1.53957125]
[1672580327224,1.11869133,16558.0,16557.0,1.53957125]
[1672580329023,1.11880667,16558.0,16557.0,1.53957125]
[1672580329298,0.66706903,16558.0,16557.0,1.53957125]
[1672580329555,0.04606003,16558.0,16557.0,1.53957125]
[1672580330069,0.66706903,16558.0,16557.0,1.53957125]
[1672580330317,0.66695369,16558.0,16557.0,1.53957125]
[1672580330552,0.04594469,16558.0,16557.0,1.53957125]
[1672580330795,0.66695369,16558.0,16557.0,1.53957125]
[1672580334501,0.66706903,16558.0,16557.0,1.53957125]
[1672580335525,0.66706903,16558.0,16557.0,0.09200637]
[1672580335740,1.63888811,16558.0,16557.0,0.09200637]
[1672580335992,1.20904165,16558.0,16557.0,0.09200637]
[1672580336506,1.63888811,16558.0,16557.0,0.09200637]
[1672580337755,1.63877277,16558.0,16557.0,0.09200637]
[1672580338035,1.20892631,16558.0,16557.0,0.09200637]
[1672580338772,1.20892631,16558.0,16557.0,0.22025574]
[1672580339278,1.20904165,16558.0,16557.0,0.09200637]
[1672580340281,1.20892631,16558.0,16557.0,0.09200637]
[1672580340772,0.66695369,16558.0,16557.0,0.09200637]
[1672580341024,0.04606003,16558.0,16557.0,0.09200637]
[1672580341273,1.09680015,16558.0,16557.0,0.22025574]
[1672580341525,1.01776377,16558.0,16557.0,0.22025574]
[1672580341772,0.58791731,16558.0,16557.0,0.09200637]
[1672580342020,1.20904165,16558.0,16557.0,0.09200637]
[1672580342262,1.63888811,16558.0,16557.0,0.09200637]
[1672580343502,1.63912177,16558.0,16557.0,0.09200637]
[1672580344562,1.63912177,16558.0,16557.0,0.10399371]
[1672580344800,1.63900643,16558.0,16557.0,0.10399371]
[1672580345043,1.63912177,16558.0,16557.0,0.10399371]
[1672580346012,1.63900643,16558.0,16557.0,0.10399371]
[1672580346970,1.20915997,16558.0,16557.0,0.10399371]
[1672580349274,1.20915997,16558.0,16557.0,0.10392197]
[1672580349533,1.20927531,16558.0,16557.0,0.10392197]
[1672580350100,1.20915997,16558.0,16557.0,0.10392197]
[1672580350585,1.20927531,16558.0,16557.0,0.10392197]
[1672580350838,1.20915997,16558.0,16557.0,0.10392197]
[1672580351585,1.20927531,16558.0,16557.0,0.10392197]
[1672580351838,1.20915997,16558.0,16557.0,0.10392197]
[1672580352598,1.20927531,16558.0,16557.0,0.10392197]
[1672580352867,1.20915997,16558.0,16557.0,0.10392197]
[1672580354873,1.20927531,16558.0,16557.0,0.10392197]
[1672580355848,1.20915997,16558.0,16557.0,0.10392197]
[1672580356600,1.20927531,16558.0,16557.0,0.10392197]
[1672580358368,1.20927531,16558.0,16557.0,0.09193463]
[1672580358863,1.20915997,16558.0,16557.0,0.09193463]
[1672580362794,1.20927531,16558.0,16557.0,0.09193463]
[1672580363418,1.20915997,16558.0,16557.0,0.09193463]
[1672580364920,1.20927531,16558.0,16557.0,0.09193463]
[1672580367667,1.63912177,16558.0,16557.0,0.09193463]
[1672580368380,1.63900643,16558.0,16557.0,0.09193463]
[1672580368909,1.63900643,16558.0,16557.0,0.20929674]
[1672580370570,1.63900643,16558.0,16557.0,0.09193463]
[1672580371583,1.09680015,16558.0,16557.0,0.09193463]
[1672580371811,1.09691549,16558.0,16557.0,0.09185325]
[1672580380006,1.09680015,16558.0,16557.0,0.09185325]
[1672580381563,0.47579115,16558.0,16557.0,0.09185325]
[1672580382174,1.09680015,16558.0,16557.0,0.09185325]
[1672580383462,1.09691549,16558.0,16557.0,0.09185325]
[1672580386529,0.66706903,16558.0,16557.0,0.09185325]
[1672580386815,1.09691549,16558.0,16557.0,0.09185325]
[1672580387076,0.66706903,16558.0,16557.0,0.09185325]
[1672580387341,1.09691549,16558.0,16557.0,0.09185325]
[1672580388081,1.08681141,16558.0,16557.0,0.09185325]
[1672580388343,1.70771529,16558.0,16557.0,0.09185325]
[1672580389076,1.70771529,16558.0,16557.0,0.10382528]
[1672580389820,1.70771529,16558.0,16557.0,0.09185325]
[1672580394231,1.70759995,16558.0,16557.0,0.09185325]
[1672580394754,2.31153695,16558.0,16557.0,0.09185325]
[1672580395239,1.70759995,16558.0,16557.0,0.09185325]
[1672580395736,1.09669503,16558.0,16557.0,0.09185325]
[1672580396234,1.09669503,16558.0,16557.0,0.16085476]
[1672580396479,1.09681037,16558.0,16557.0,0.16085476]
[1672580396735,1.09669503,16558.0,16557.0,0.16085476]
[1672580397484,1.09681037,16558.0,16557.0,0.16085476]
[1672580397727,1.09681037,16558.0,16557.0,0.09185325]
[1672580398745,1.70771529,16558.0,16557.0,0.09185325]
[1672580399231,1.09681037,16558.0,16557.0,0.09185325]
[1672580400485,1.09669503,16558.0,16557.0,0.09185325]
[1672580403468,1.70759995,16558.0,16557.0,0.09185325]
[1672580403984,1.70771529,16558.0,16557.0,0.09185325]
[1672580404237,1.70759995,16558.0,16557.0,0.09185325]
[1672580405208,1.70771529,16558.0,16557.0,0.09185325]
[1672580405719,1.09681037,16558.0,16557.0,0.09185325]
[1672580405958,1.70771529,16558.0,16557.0,0.09185325]
[1672580406298,1.09681037,16558.0,16557.0,0.09185325]
[1672580406680,1.09681037,16558.0,16557.0,0.16085476]
[1672580406926,1.70771529,16558.0,16557.0,0.16085476]
[1672580407193,1.70771529,16558.0,16557.0,0.09185325]
[1672580407407,1.09681037,16558.0,16557.0,0.09185325]
[1672580408168,1.08981037,16558.0,16557.0,0.02585325]
[1672580408410,1.09781037,16558.0,16557.0,0.08685325]
[1672580408667,1.70871529,16558.0,16557.0,0.08685325]
[1672580409120,1.70871529,16558.0,16557.0,0.15535476]
[1672580409339,1.09781037,16558.0,16557.0,0.15535476]
[1672580410341,1.09769503,16558.0,16557.0,0.15535476]
[1672580411339,1.09769503,16558.0,16557.0,0.08685325]
[1672580412841,1.09769503,16558.0,16557.0,0.08678868]
[1672580413829,1.09781037,16558.0,16557.0,0.08678868]
[1672580414805,1.70871529,16558.0,16557.0,0.08678868]
[1672580415049,1.08770629,16558.0,16557.0,0.08678868]
[1672580415289,1.70871529,16558.0,16557.0,0.08678868]
[1672580415533,1.09781037,16558.0,16557.0,0.15528373]
[1672580416118,1.09781037,16558.0,16557.0,0.08678868]
[1672580416891,1.70871529,16558.0,16557.0,0.08678868]
[1672580417640,1.09781037,16558.0,16557.0,0.08678868]
[1672580418137,1.70871529,16558.0,16557.0,0.08678868]
[1672580418390,1.09781037,16558.0,16557.0,0.08678868]
[1672580419641,1.09769503,16558.0,16557.0,0.08678868]
[1672580420138,0.66784857,16558.0,16557.0,0.08678868]
[1672580420641,0.58973261,16558.0,16557.0,0.65204781]
[1672580421129,0.58973261,16558.0,16557.0,0.58355276]
[1672580421648,0.58973261,16558.0,16557.0,1.18752676]
[1672580426627,0.04683957,16558.0,16557.0,1.18752676]
[1672580428798,1.21074161,16558.0,16557.0,1.18752676]
[1672580431842,0.66784857,16558.0,16557.0,1.18752676]
[1672580432115,0.66784857,16558.0,16557.0,1.36946374]
[1672580432595,0.04683957,16558.0,16557.0,1.36946374]
[1672580434286,0.04683957,16558.0,16557.0,1.78714579]
[1672580434524,0.04683957,16558.0,16557.0,1.36946374]
[1672580436754,0.04683957,16558.0,16557.0,1.36935245]
[1672580453582,0.04683957,16558.0,16557.0,1.97332645]
[1672580454083,0.49898609,16558.0,16557.0,1.97332645]
[1672580455238,0.49898609,16558.0,16557.0,2.39099396]
[1672580455973,0.49898609,16558.0,16557.0,1.97332645]
[1672580456470,0.04683957,16558.0,16557.0,1.97332645]
[1672580458282,0.04683957,16558.0,16557.0,1.79138947]
[1672580461229,0.04683957,16558.0,16557.0,1.79127182]
[1672580462964,0.05839015,16558.0,16557.0,1.79127182]
[1672580469178,0.05850549,16558.0,16557.0,1.79127182]
[1672580469427,0.60128319,16558.0,16557.0,1.79127182]
[1672580469706,1.22229219,16558.0,16557.0,1.79127182]
[1672580470971,1.22229219,16558.0,16557.0,2.0335839]
[1672580471501,1.22229219,16558.0,16557.0,1.53681982]
[1672580472282,0.60128319,16558.0,16557.0,1.53681982]
[1672580472738,0.05839015,16558.0,16557.0,1.53681982]
[1672580472986,0.60128319,16558.0,16557.0,1.53681982]
[1672580476120,0.05839015,16558.0,16557.0,1.53681982]
[1672580479349,0.05850549,16558.0,16557.0,1.53681982]
[1672580479593,0.60139853,16558.0,16557.0,1.53681982]
[1672580479835,1.22229219,16558.0,16557.0,1.53681982]
[1672580481601,1.22240753,16558.0,16557.0,1.53681982]
[1672580481853,1.22229219,16558.0,16557.0,1.53671332]
[1672580482840,1.22240753,16558.0,16557.0,1.53671332]
[1672580483090,1.22229219,16558.0,16557.0,1.53671332]
[1672580483341,1.22229219,16558.0,16557.0,2.06883399]
[1672580483593,0.51077534,16558.0,16557.0,3.09064384]
[1672580484088,0.51077534,16558.0,16557.0,3.09045607]
[1672580485325,0.87263903,16558.0,16557.0,3.09045607]
[1672580486079,0.51077534,16558.0,16557.0,3.09045607]
[1672580486331,0.87263475,16558.0,16557.0,3.09045607]
[1672580490323,1.14399161,16558.0,16557.0,3.09045607]
[1672580491312,0.69160642,16558.0,16557.0,3.09045607]
[1672580492056,1.14399161,16558.0,16557.0,3.09045607]
[1672580492805,0.69160642,16558.0,16557.0,3.09045607]
[1672580495223,1.14399161,16558.0,16557.0,2.67280799]
[1672580496273,0.87263475,16558.0,16557.0,2.67280799]
[1672580496495,1.1439218,16558.0,16557.0,2.67280799]
[1672580498522,0.69153661,16558.0,16557.0,2.67280799]
[1672580498765,1.1439218,16558.0,16557.0,2.67280799]
[1672580499218,0.69153661,16558.0,16557.0,2.67280799]
[1672580500230,0.69153661,16558.0,16557.0,3.09056576]
[1672580500477,1.1439218,16558.0,16557.0,3.09056576]
[1672580500721,1.1439218,16558.0,16557.0,2.67280799]
[1672580501239,0.69153661,16558.0,16557.0,2.67280799]
[1672580501491,0.69153661,16558.0,16557.0,3.09056576]
[1672580504254,0.69153661,16558.0,16557.0,3.39056576]
[1672580505273,0.8723826,16558.0,16557.0,3.39056576]
[1672580505775,0.8723826,16558.0,16557.0,3.39047967]
[1672580506034,0.51052319,16558.0,16557.0,3.39047967]
[1672580506534,0.51052319,16558.0,16557.0,4.09047967]
[1672580508268,0.51052319,16558.0,16557.0,3.79047967]
[1672580511291,0.51052319,16558.0,16557.0,4.09047967]
[1672580511836,0.51052319,16558.0,16557.0,3.79047967]
[1672580512065,0.51052319,16558.0,16557.0,4.09047967]
[1672580515618,0.51052319,16558.0,16557.0,3.39047967]
[1672580516340,0.47168362,16558.0,16557.0,3.39047967]
[1672580516615,0.47168362,16558.0,16557.0,4.09047967]
[1672580523043,0.83354303,16558.0,16557.0,4.09047967]
[1672580523299,0.47168362,16558.0,16557.0,4.09047967]
[1672580524538,0.47168362,16558.0,16557.0,3.39047967]
[1672580525552,0.47168362,16558.0,16557.0,4.09047967]
[1672580527861,0.20039657,16558.0,16557.0,4.09047967]
[1672580528115,0.20039657,16558.0,16557.0,4.10875062]
[1672580535386,0.20039657,16558.0,16557.0,3.40875062]
[1672580536378,0.20039657,16558.0,16557.0,4.10875062]
[1672580540718,0.01955058,16558.0,16557.0,4.10875062]
[1672580540975,0.01955058,16558.0,16557.0,4.10866971]
[1672580541218,0.20039657,16558.0,16557.0,4.10866971]
[1672580542458,0.01955058,16558.0,16557.0,4.10866971]
[1672580545951,0.20039657,16558.0,16557.0,4.10866971]
[1672580546164,0.01955058,16558.0,16557.0,4.10866971]
[1672580547394,0.01955058,16558.0,16557.0,3.40866971]
[1672580548407,0.01955058,16558.0,16557.0,4.28973698]
[1672580548655,0.01955058,16558.0,16557.0,4.10866971]
[1672580548916,0.01955058,16558.0,16557.0,4.28973698]
[1672580549167,0.01955058,16558.0,16557.0,4.59171698]
[1672580550427,0.01955058,16558.0,16557.0,4.28973698]
[1672580554279,0.01955058,16558.0,16557.0,4.10866971]
[1672580555019,0.05762322,16558.0,16557.0,4.10866971]
[1672580556275,0.05762322,16558.0,16557.0,4.28973698]
[1672580556772,0.05762322,16558.0,16557.0,4.10866971]
[1672580557763,0.05762322,16558.0,16557.0,4.28973698]
[1672580561126,0.05762322,16558.0,16557.0,3.58973698]
[1672580562335,0.05762322,16558.0,16557.0,4.28973698]
[1672580564081,0.23846921,16558.0,16557.0,4.10866971]
[1672580564329,0.50975626,16558.0,16557.0,3.79031251]
[1672580564577,0.50975626,16558.0,16557.0,3.37255474]
[1672580565060,0.50975626,16558.0,16557.0,3.8024012]
[1672580566319,0.50975626,16558.0,16557.0,4.1024012]
[1672580571487,0.23846921,16558.0,16557.0,4.1024012]
[1672580574405,0.23839508,16558.0,16557.0,4.1024012]
[1672580575402,0.50968213,16558.0,16557.0,4.1024012]
[1672580577473,0.23839508,16558.0,16557.0,4.1024012]
[1672580577739,0.50968213,16558.0,16557.0,4.12067215]
[1672580577989,0.23839508,16558.0,16557.0,4.12067215]
[1672580580968,0.05754909,16558.0,16557.0,4.12067215]
[1672580581950,0.05754909,16558.0,16557.0,3.42067215]
[1672580582959,0.05754909,16558.0,16557.0,4.12067215]
[1672580583218,0.05754909,16558.0,16557.0,4.30173942]
[1672580583475,0.05754909,16558.0,16557.0,4.12067215]
[1672580583735,0.05754909,16558.0,16557.0,4.30173942]
[1672580590568,0.05754909,16558.0,16557.0,3.60173942]
[1672580591365,0.05754909,16558.0,16557.0,4.30173942]
[1672580597330,0.05754909,16558.0,16557.0,3.60173942]
[1672580597827,0.05754909,16558.0,16557.0,3.42067215]
[1672580598334,0.05754909,16558.0,16557.0,4.12067215]
[1672580598833,0.05754909,16558.0,16557.0,4.12058967]
[1672580602981,0.05754909,16558.0,16557.0,4.10231872]
[1672580603437,0.05754909,16558.0,16557.0,4.12058967]
[1672580604417,0.05754909,16558.0,16557.0,3.42058967]
[1672580604910,0.05754909,16558.0,16557.0,3.60165694]
[1672580605405,0.05754909,16558.0,16557.0,4.30165694]
[1672580607613,0.23839508,16558.0,16557.0,4.30165694]
[1672580607867,0.05754909,16558.0,16557.0,4.30165694]
[1672580608576,0.23839508,16558.0,16557.0,4.30165694]
[1672580609394,0.05754909,16558.0,16557.0,4.30165694]
[1672580609646,0.23839508,16558.0,16557.0,4.30165694]
[1672580610877,0.23839508,16558.0,16557.0,4.12058967]
[1672580611592,0.23839508,16558.0,16557.0,4.30165694]
[1672580611840,0.23839508,16558.0,16557.0,3.60165694]
[1672580612360,0.23839508,16558.0,16557.0,4.30165694]
[1672580612599,0.23839508,16558.0,16557.0,4.12058967]
[1672580614132,0.23851042,16558.0,16557.0,3.69074321]
[1672580614392,0.69069555,16558.0,16557.0,2.84035159]
[1672580614625,0.87179369,16558.0,16557.0,2.84035159]
[1672580614874,1.49280269,16558.0,16557.0,2.84035159]
[1672580615117,1.31181395,16558.0,16557.0,2.84035159]
[1672580615369,1.31192929,16558.0,16557.0,2.84035159]
[1672580615889,1.76431448,16558.0,16557.0,2.14035159]
[1672580616380,1.76419914,16558.0,16557.0,2.14035159]
[1672580617127,1.31181395,16558.0,16557.0,2.14035159]
[1672580618341,1.31192929,16558.0,16557.0,2.14035159]
[1672580619558,1.31181395,16558.0,16557.0,2.14035159]
[1672580619872,1.31192929,16558.0,16557.0,2.14035159]
[1672580620115,1.31181395,16558.0,16557.0,2.14035159]
[1672580620879,1.31181395,16558.0,16557.0,2.14025517]
[1672580622410,0.69092029,16558.0,16557.0,2.14025517]
[1672580622913,1.31192929,16558.0,16557.0,2.14025517]
[1672580624386,1.31181395,16558.0,16557.0,2.14025517]
[1672580624886,1.49280269,16558.0,16557.0,1.89794309]
[1672580625378,1.49291803,16558.0,16557.0,1.89794309]
[1672580627586,1.49280269,16558.0,16557.0,1.89794309]
[1672580629059,1.76389185,16558.0,16557.0,1.89794309]
[1672580629307,1.31150666,16558.0,16557.0,1.89794309]
[1672580629575,1.76389185,16558.0,16557.0,2.20688455]
[1672580629818,1.49280269,16558.0,16557.0,2.20688455]
[1672580630068,1.76389517,16558.0,16557.0,2.20688455]
[1672580630313,1.76389659,16558.0,16557.0,2.20688455]
[1672580630553,1.49280269,16558.0,16557.0,2.20688455]
[1672580630773,1.76389657,16558.0,16557.0,2.20688455]
[1672580631015,1.76398832,16558.0,16557.0,2.20688455]
[1672580631557,1.31148779,16558.0,16557.0,2.20688455]
[1672580632300,1.31160313,16558.0,16557.0,2.20688455]
[1672580632635,1.76398832,16558.0,16557.0,2.20688455]
[1672580632790,1.76387298,16558.0,16557.0,2.20688455]
[1672580633028,1.31148779,16558.0,16557.0,2.20688455]
[1672580633277,1.31160313,16558.0,16557.0,1.89794309]
[1672580633769,1.13105862,16558.0,16557.0,0.68999509]
[1672580634752,1.13094328,16558.0,16557.0,1.29396909]
[1672580635023,1.49234468,16558.0,16557.0,1.29396909]
[1672580636020,1.49234468,16558.0,16557.0,0.68999509]
[1672580636516,1.49246002,16558.0,16557.0,0.68999509]
[1672580636772,1.49246002,16558.0,16557.0,0.9333928]
[1672580637009,1.49234468,16558.0,16557.0,1.5373668]
[1672580638517,1.49246002,16558.0,16557.0,1.5373668]
[1672580638763,0.87145102,16558.0,16557.0,1.5373668]
[1672580639258,0.87133568,16558.0,16557.0,1.5373668]
[1672580639509,1.14236275,16558.0,16557.0,1.5373668]
[1672580639750,1.14247809,16558.0,16557.0,1.5373668]
[1672580640245,1.76348709,16558.0,16557.0,1.5373668]
[1672580640487,1.31098656,16558.0,16557.0,1.5373668]
[1672580640735,0.68997756,16558.0,16557.0,1.5373668]
[1672580641726,0.6900929,16558.0,16557.0,1.5373668]
[1672580641967,1.3111019,16558.0,16557.0,1.5373668]
[1672580642474,1.76348709,16558.0,16557.0,1.5373668]
[1672580642966,1.3111019,16558.0,16557.0,1.5373668]
[1672580643219,1.76348709,16558.0,16557.0,1.5373668]
[1672580643461,1.49246002,16558.0,16557.0,1.5373668]
[1672580643701,1.49234468,16558.0,16557.0,1.5373668]
[1672580644220,0.87133568,16558.0,16557.0,1.5373668]